Body Name,Document Number,Service,Type of Expenditure,Invoice Date,Supplier Name,Cost to the Council (Amount Exc VAT),Month
S000291     ,149,Non-domestic Rates Collection ,Fees Costs and Expenses       ,08-Jun-2021,INFORM CPI LTD                          ,306.00,Jul-21
S000604     ,1555,Long Eaton Market             ,Planned Preventative Maintenan,31-Mar-2021,INNES ENGLAND LTD                       ,"1,600.00",Jul-21
S000144     ,96,ICT Support Services          ,Software Licences             ,08-Jun-2021,INSIGHT DIRECT (UK) LTD                 ,"2,083.68",Jul-21
S000144     ,96,ICT Support Services          ,Software Licences             ,08-Jun-2021,INSIGHT DIRECT (UK) LTD                 ,"8,490.58",Jul-21
S000144     ,96,ICT Support Services          ,Software Licences             ,08-Jun-2021,INSIGHT DIRECT (UK) LTD                 ,877.16,Jul-21
S000345     ,1547,Car Parking                   ,Credit/Debit Card Charges     ,30-Apr-2021,INTERNATIONAL PARKING SYSTEMS UK LTD    ,585.16,Jul-21
S000345     ,862,Car Parking                   ,Credit/Debit Card Charges     ,30-Jun-2021,INTERNATIONAL PARKING SYSTEMS UK LTD    ,"1,011.00",Jul-21
S000345     ,851,Green Space and Street Scene  ,External Property Works       ,30-Jun-2021,INTERNATIONAL PARKING SYSTEMS UK LTD    ,"13,965.00",Jul-21
S000427     ,615,Household Waste Collection    ,Bins                          ,01-Apr-2021,J & HM DICKSON LTD                      ,"5,300.00",Jul-21
S000608     ,2137,Transport Trading Account     ,Training                      ,17-May-2021,J N KEY LOGISTICS TRAINING & COMPLIANCE ,232.50,Jul-21
S000608     ,2137,Street Scene                  ,Training                      ,17-May-2021,J N KEY LOGISTICS TRAINING & COMPLIANCE ,155.00,Jul-21
S000608     ,2137,Household Waste Collection    ,Training                      ,17-May-2021,J N KEY LOGISTICS TRAINING & COMPLIANCE ,852.50,Jul-21
S000350     ,764,Property and Estates          ,External Property Works       ,29-Jun-2021,J TOMLINSON LIMITED                     ,"116,405.35",Jul-21
S000590     ,2355,General Entertainment         ,Special Events                ,11-Jul-2021,JOLLY JINGLES FUNTIME                   ,500.00,Jul-21
S000619     ,2376,Homelessness                  ,Homelessness-Lease Properties ,26-Jun-2021,JP'S GROUNDS & MAINTENANCE SERVICES     ,540.00,Jul-21
S000557     ,704,Environmental & Housing Serv  ,Disabled Facilities Grant     ,25-Jun-2021,REDACTED PERSONAL DATA,"13,577.00",Jul-21
S000557     ,2188,Environmental & Housing Serv  ,Disabled Facilities Grant     ,16-Jul-2021,REDACTED PERSONAL DATA,"5,218.00",Jul-21
S000453     ,400,Green Space                   ,Materials/Consumables         ,17-Jun-2021,KERNOCK PARK PLANTS                     ,"1,985.00",Jul-21
S000170     ,902,EBC Balance Sheet             ,Childcare Salary Sacrifice    ,05-Jul-2021,KIDDIVOUCHERS LTD                       ,816.00,Jul-21
S000322     ,490,Front Line Support Services   ,Security                      ,31-May-2021,KINGS ARMOURED SECURITY SERVICES        ,638.40,Jul-21
S000322     ,2135,Front Line Support Services   ,Security                      ,30-Jun-2021,KINGS ARMOURED SECURITY SERVICES        ,739.20,Jul-21
S000322     ,1318,Car Parking                   ,Contracted Services           ,30-Jun-2021,KINGS ARMOURED SECURITY SERVICES        ,"1,529.15",Jul-21
S000090     ,306,Reprographics                 ,Equipment Leasing Charge      ,15-Jun-2021,KONICA MINOLTA BUSINESS SOLUTIONS (UK) L,"1,014.93",Jul-21
S000090     ,437,Reprographics                 ,Equipment Leasing Charge      ,11-Jun-2021,KONICA MINOLTA BUSINESS SOLUTIONS (UK) L,478.95,Jul-21
S000124     ,279,Green Space                   ,Materials/Consumables         ,02-Jun-2021,KRM BUILDING SUPPLIES LTD               ,611.82,Jul-21
S000301     ,609,ICT Support Services          ,Equipment Leasing Charge      ,18-Jun-2021,KYOCERA DOCUMENT SOLUTIONS (UK) LTD     ,"2,634.42",Jul-21
S000334     ,385,Household Waste Collection    ,Agency Staff                  ,17-Jun-2021,QUALITY SERVICE RECRUITMENT LTD         ,593.05,Jul-21
S000334     ,385,Kerbside Recycling Collection ,Agency Staff                  ,17-Jun-2021,QUALITY SERVICE RECRUITMENT LTD         ,395.36,Jul-21
S000334     ,230,Household Waste Collection    ,Agency Staff                  ,10-Jun-2021,QUALITY SERVICE RECRUITMENT LTD         ,656.89,Jul-21
S000334     ,230,Kerbside Recycling Collection ,Agency Staff                  ,10-Jun-2021,QUALITY SERVICE RECRUITMENT LTD         ,437.93,Jul-21
S000334     ,629,Household Waste Collection    ,Agency Staff                  ,24-Jun-2021,QUALITY SERVICE RECRUITMENT LTD         ,533.89,Jul-21
S000334     ,629,Kerbside Recycling Collection ,Agency Staff                  ,24-Jun-2021,QUALITY SERVICE RECRUITMENT LTD         ,355.93,Jul-21
S000334     ,51,Household Waste Collection    ,Agency Staff                  ,07-Jun-2021,QUALITY SERVICE RECRUITMENT LTD         ,636.25,Jul-21
S000334     ,51,Kerbside Recycling Collection ,Agency Staff                  ,07-Jun-2021,QUALITY SERVICE RECRUITMENT LTD         ,424.17,Jul-21
S000334     ,841,Household Waste Collection    ,Agency Staff                  ,30-Jun-2021,QUALITY SERVICE RECRUITMENT LTD         ,588.74,Jul-21
S000334     ,841,Kerbside Recycling Collection ,Agency Staff                  ,30-Jun-2021,QUALITY SERVICE RECRUITMENT LTD         ,392.50,Jul-21
S000336     ,844,Transport Trading Account     ,Agency Staff                  ,21-Jun-2021,QUESTECH RECRUITMENT LTD                ,906.50,Jul-21
S000336     ,842,Transport Trading Account     ,Agency Staff                  ,07-Jun-2021,QUESTECH RECRUITMENT LTD                ,784.00,Jul-21
S000336     ,843,Transport Trading Account     ,Agency Staff                  ,14-Jun-2021,QUESTECH RECRUITMENT LTD                ,931.00,Jul-21
S000336     ,845,Transport Trading Account     ,Agency Staff                  ,28-Jun-2021,QUESTECH RECRUITMENT LTD                ,906.50,Jul-21
S000351     ,1214,Building Control Adv & Inform ,Contracted Services           ,01-Jul-2021,RANSOMWOOD ESTATES UK LIMITED           ,531.67,Jul-21
S000304     ,390,Democratic Representation     ,Advertising                   ,13-Jun-2021,REACH PUBLISHING SERVICES LIMITED       ,390.37,Jul-21
S000420     ,335,Household Waste Collection    ,General Equipment             ,16-Jun-2021,REACT CLEANING SERVICES                 ,325.00,Jul-21
S000120     ,749,Building Control - Fee Earning,Agency Staff                  ,25-Jun-2021,REED SPECIALIST RECRUITMENT LTD         ,650.46,Jul-21
S000120     ,1213,Building Control - Fee Earning,Agency Staff                  ,02-Jul-2021,REED SPECIALIST RECRUITMENT LTD         ,520.37,Jul-21
S000319     ,863,Shopmobility - Ilkeston       ,Sanitary Services             ,09-Jun-2021,RENTOKIL INITIAL SERVICES LIMITED       ,329.55,Jul-21
S000319     ,863,Erewash Museum                ,Sanitary Services             ,09-Jun-2021,RENTOKIL INITIAL SERVICES LIMITED       ,0.00,Jul-21
S000319     ,863,Civic Accommodation Ilkeston  ,Sanitary Services             ,09-Jun-2021,RENTOKIL INITIAL SERVICES LIMITED       ,0.00,Jul-21
S000319     ,863,Long Eaton Market             ,Sanitary Services             ,09-Jun-2021,RENTOKIL INITIAL SERVICES LIMITED       ,0.00,Jul-21
S000319     ,863,Civic Accommodation Long Eaton,Sanitary Services             ,09-Jun-2021,RENTOKIL INITIAL SERVICES LIMITED       ,0.00,Jul-21
S000319     ,863,Merlin Way Depot              ,Sanitary Services             ,09-Jun-2021,RENTOKIL INITIAL SERVICES LIMITED       ,0.00,Jul-21
S000319     ,863,Public Conveniences           ,Sanitary Services             ,09-Jun-2021,RENTOKIL INITIAL SERVICES LIMITED       ,0.00,Jul-21
S000587     ,1212,Building Control - Fee Earning,Consultants Fees              ,15-Jun-2021,ROSEMARY CONTRACTORS                    ,300.00,Jul-21
S000242     ,290,Revenues and Benefits         ,Postages                      ,07-Jun-2021,ROYAL MAIL GROUP LTD.                   ,341.67,Jul-21
S000242     ,68,Revenues and Benefits         ,Postages                      ,02-Jun-2021,ROYAL MAIL GROUP LTD.                   ,"1,389.12",Jul-21
S000242     ,66,Communications                ,General Publicity and Promotio,02-Jun-2021,ROYAL MAIL GROUP LTD.                   ,"5,068.35",Jul-21
S000242     ,457,Revenues and Benefits         ,Postages                      ,16-Jun-2021,ROYAL MAIL GROUP LTD.                   ,"1,020.60",Jul-21
S000242     ,922,Revenues and Benefits         ,Postages                      ,30-Jun-2021,ROYAL MAIL GROUP LTD.                   ,"1,359.68",Jul-21
S000007     ,859,Green Space                   ,Repairs and Maintenance       ,04-Jun-2021,RUSSELLS (KIRBYMOORSIDE) LIMITED        ,"1,731.00",Jul-21
S000007     ,462,Green Space                   ,Repairs and Maintenance       ,04-Jun-2021,RUSSELLS (KIRBYMOORSIDE) LIMITED        ,"1,731.01",Jul-21
S000245     ,917,Street Scene                  ,Repairs and Maintenance       ,23-Jun-2021,SCARAB SWEEPERS LTD                     ,258.97,Jul-21
S000338     ,2104,Merlin Way Depot              ,Metered Water                 ,01-Jun-2021,SCOTTISH WATER BUSINESS STREAM LIMITED  ,725.61,Jul-21
S000338     ,2104,Civic Accommodation Ilkeston  ,Metered Water                 ,01-Jun-2021,SCOTTISH WATER BUSINESS STREAM LIMITED  ,522.09,Jul-21
S000338     ,2104,Green Space                   ,Metered Water                 ,01-Jun-2021,SCOTTISH WATER BUSINESS STREAM LIMITED  ,623.99,Jul-21
S000338     ,2104,Public Conveniences           ,Metered Water                 ,01-Jun-2021,SCOTTISH WATER BUSINESS STREAM LIMITED  ,597.73,Jul-21
S000338     ,2105,Green Space                   ,Metered Water                 ,01-Jul-2021,SCOTTISH WATER BUSINESS STREAM LIMITED  ,530.95,Jul-21
S000338     ,2105,Allotments                    ,Metered Water                 ,01-Jul-2021,SCOTTISH WATER BUSINESS STREAM LIMITED  ,382.76,Jul-21
S000338     ,2105,Public Conveniences           ,Metered Water                 ,01-Jul-2021,SCOTTISH WATER BUSINESS STREAM LIMITED  ,832.40,Jul-21
S000338     ,2105,Merlin Way Depot              ,Metered Water                 ,01-Jul-2021,SCOTTISH WATER BUSINESS STREAM LIMITED  ,749.09,Jul-21
S000338     ,2105,Civic Accommodation Ilkeston  ,Metered Water                 ,01-Jul-2021,SCOTTISH WATER BUSINESS STREAM LIMITED  ,692.49,Jul-21
S000558     ,289,Street Scene                  ,Maintenance of Bus Shelters   ,10-Jun-2021,SHELTER MAINTENANCE CO                  ,295.00,Jul-21
S000298     ,1372,Green Space                   ,Materials/Consumables         ,16-Jun-2021,SLINTER MINING COMPANY                  ,341.05,Jul-21
S000135     ,2154,Democratic Representation     ,Communications costs          ,27-May-2021,SNOW ELK PRODUCTIONS                    ,400.00,Jul-21
S000135     ,2155,Democratic Representation     ,Communications costs          ,24-Jun-2021,SNOW ELK PRODUCTIONS                    ,400.00,Jul-21
S000127     ,2101,"Police, Crime Commissioner Com",Project Grants                ,09-Apr-2021,SOUTH DERBYSHIRE CVS.                   ,"4,000.00",Jul-21
S000127     ,897,"Police, Crime Commissioner Com",Project Grants                ,02-Jul-2021,SOUTH DERBYSHIRE CVS.                   ,"4,000.00",Jul-21
S000169     ,1203,Street Scene                  ,Contracted Services           ,12-Jun-2021,STANTON RECYCLING LIMITED               ,420.00,Jul-21
S000315     ,524,Parks Changing Rooms          ,Reactive Maintenance          ,16-Jun-2021,STEELCRAFT FABRICATIONS                 ,420.00,Jul-21
S000315     ,916,West Park Pavilion and caf�   ,Reactive Maintenance          ,02-Jul-2021,STEELCRAFT FABRICATIONS                 ,375.00,Jul-21
S000067     ,58,Corporate Health and Safety   ,Water Testing (Legionella)    ,07-Jun-2021,STERILIZING SERVICES LTD                ,"1,333.30",Jul-21
S000067     ,854,Corporate Health and Safety   ,Water Testing (Legionella)    ,30-Jun-2021,STERILIZING SERVICES LTD                ,656.80,Jul-21
S000506     ,722,Green Space                   ,Materials/Consumables         ,14-Jun-2021,STREETMASTER (SOUTH WALES) LTD          ,"1,298.00",Jul-21
S000061     ,542,Trade Waste                   ,Repairs and Maintenance       ,02-Jun-2021,DENNIS EAGLE LTD                        ,268.20,Jul-21
S000061     ,682,Household Waste Collection    ,Materials/Consumables         ,17-Jun-2021,DENNIS EAGLE LTD                        ,594.46,Jul-21
S000061     ,681,Household Waste Collection    ,Repairs and Maintenance       ,22-Jun-2021,DENNIS EAGLE LTD                        ,546.36,Jul-21
S000061     ,914,Household Waste Collection    ,Repairs and Maintenance       ,02-Jul-2021,DENNIS EAGLE LTD                        ,295.95,Jul-21
S000061     ,921,Household Waste Collection    ,Repairs and Maintenance       ,30-Jun-2021,DENNIS EAGLE LTD                        ,"1,069.06",Jul-21
S000062     ,2173,Homelessness                  ,Contribution to Shared Service,23-Jun-2021,DERBY CITY COUNCIL                      ,"9,131.00",Jul-21
S000062     ,4375,Non Domestic Rates Retention  ,NNDR Tariff                   ,20-Jul-2021,DERBY CITY COUNCIL                      ,"585,635.60",Jul-21
S000303     ,623,Homelessness                  ,Temporary Accommodation       ,23-Jun-2021,DERBY GUESTHOUSE LIMITED                ,560.00,Jul-21
S000303     ,619,Homelessness                  ,Temporary Accommodation       ,23-Jun-2021,DERBY GUESTHOUSE LIMITED                ,560.00,Jul-21
S000147     ,2143,EBC Balance Sheet             ,Payroll Coll Acc Credit Union ,20-Jul-2021,DERBYSHIRE COMMUNITY BANK               ,330.00,Jul-21
S000063     ,628,Personnel                     ,Recruitment Expenses          ,02-Jun-2021,DERBYSHIRE COUNTY COUNCIL...            ,448.00,Jul-21
S000063     ,1320,Personnel                     ,Recruitment Expenses          ,29-Jun-2021,DERBYSHIRE COUNTY COUNCIL...            ,448.00,Jul-21
S000063     ,1439,Environmental & Housing Serv  ,Disabled Facilities Grant     ,21-Apr-2021,DERBYSHIRE COUNTY COUNCIL...            ,"2,768.00",Jul-21
S000063     ,1422,Environmental & Housing Serv  ,Disabled Facilities Grant     ,18-May-2021,DERBYSHIRE COUNTY COUNCIL...            ,"4,401.73",Jul-21
S000063     ,1429,Environmental & Housing Serv  ,Disabled Facilities Grant     ,26-Apr-2021,DERBYSHIRE COUNTY COUNCIL...            ,"4,939.40",Jul-21
S000063     ,1436,Environmental & Housing Serv  ,Disabled Facilities Grant     ,26-Apr-2021,DERBYSHIRE COUNTY COUNCIL...            ,"5,075.89",Jul-21
S000063     ,1435,Environmental & Housing Serv  ,Disabled Facilities Grant     ,10-May-2021,DERBYSHIRE COUNTY COUNCIL...            ,"5,432.30",Jul-21
S000063     ,1425,Environmental & Housing Serv  ,Disabled Facilities Grant     ,17-May-2021,DERBYSHIRE COUNTY COUNCIL...            ,"5,535.12",Jul-21
S000063     ,1440,Environmental & Housing Serv  ,Disabled Facilities Grant     ,27-Apr-2021,DERBYSHIRE COUNTY COUNCIL...            ,"5,592.63",Jul-21
S000063     ,1432,Environmental & Housing Serv  ,Disabled Facilities Grant     ,26-Apr-2021,DERBYSHIRE COUNTY COUNCIL...            ,"5,618.61",Jul-21
S000063     ,1437,Environmental & Housing Serv  ,Disabled Facilities Grant     ,06-May-2021,DERBYSHIRE COUNTY COUNCIL...            ,"5,749.00",Jul-21
S000063     ,1430,Environmental & Housing Serv  ,Disabled Facilities Grant     ,21-Apr-2021,DERBYSHIRE COUNTY COUNCIL...            ,"5,860.80",Jul-21
S000063     ,1427,Environmental & Housing Serv  ,Disabled Facilities Grant     ,18-May-2021,DERBYSHIRE COUNTY COUNCIL...            ,"6,475.34",Jul-21
S000063     ,1433,Environmental & Housing Serv  ,Disabled Facilities Grant     ,10-May-2021,DERBYSHIRE COUNTY COUNCIL...            ,"10,818.40",Jul-21
S000063     ,1556,EBC Balance Sheet             ,Bond Deposit Accounts S106    ,14-Jul-2021,DERBYSHIRE COUNTY COUNCIL...            ,"398,965.35",Jul-21
S000063     ,884,EBC Balance Sheet             ,Payroll Coll Acc Superanuation,02-Jul-2021,DERBYSHIRE COUNTY COUNCIL...            ,"124,106.72",Jul-21
S000063     ,884,EBC Balance Sheet             ,Payroll Coll Acc Superanuation,02-Jul-2021,DERBYSHIRE COUNTY COUNCIL...            ,"83,250.00",Jul-21
S000063     ,2174,Contaminated Land             ,Site Investigations           ,02-Jul-2021,DERBYSHIRE COUNTY COUNCIL...            ,569.70,Jul-21
S000063     ,2058,Commissioned Projects         ,Fees Costs and Expenses       ,14-Jul-2021,DERBYSHIRE COUNTY COUNCIL...            ,"3,000.00",Jul-21
S000063     ,2116,Environmental & Housing Serv  ,Disabled Facilities Grant     ,01-Jun-2021,DERBYSHIRE COUNTY COUNCIL...            ,"5,553.14",Jul-21
S000063     ,2115,Environmental & Housing Serv  ,Disabled Facilities Grant     ,18-May-2021,DERBYSHIRE COUNTY COUNCIL...            ,"5,675.00",Jul-21
S000063     ,2114,Environmental & Housing Serv  ,Disabled Facilities Grant     ,17-May-2021,DERBYSHIRE COUNTY COUNCIL...            ,"5,757.47",Jul-21
S000480     ,240,Green Space                   ,Training                      ,02-Jun-2021,DIAMOND DRIVER TRAINING                 ,450.00,Jul-21
S000333     ,911,Green Space                   ,Materials/Consumables         ,30-Jun-2021,ENTERPRISE FLEX E RENT                  ,488.56,Jul-21
S000075     ,2146,EBC Balance Sheet             ,Payroll Coll Acc Labour Party ,20-Jul-2021,EREWASH LABOUR GROUP                    ,512.92,Jul-21
S000299     ,856,Neighbourhood Wardens         ,Materials/Consumables         ,01-Jul-2021,EREWASH PARTNERSHIP LTD                 ,411.84,Jul-21
S000584     ,1475,Development Control           ,Consultants Fees              ,01-Jul-2021,ESSEX COUNTY COUNCIL                    ,"3,420.00",Jul-21
S000259     ,53,Green Space                   ,Contracted Services           ,02-Jun-2021,T H HEATH  CONTRACTS  LTD               ,697.59,Jul-21
S000259     ,52,Green Space                   ,Contracted Services           ,02-Jun-2021,T H HEATH  CONTRACTS  LTD               ,"5,194.54",Jul-21
S000259     ,752,Green Space                   ,Contracted Services           ,29-Jun-2021,T H HEATH  CONTRACTS  LTD               ,697.59,Jul-21
S000259     ,753,Green Space                   ,Contracted Services           ,29-Jun-2021,T H HEATH  CONTRACTS  LTD               ,697.49,Jul-21
S000259     ,753,Green Space                   ,Contracted Services           ,29-Jun-2021,T H HEATH  CONTRACTS  LTD               ,"2,986.51",Jul-21
S000259     ,754,Green Space                   ,Contracted Services           ,29-Jun-2021,T H HEATH  CONTRACTS  LTD               ,"2,633.32",Jul-21
S000259     ,754,Green Space                   ,Contracted Services           ,29-Jun-2021,T H HEATH  CONTRACTS  LTD               ,"2,633.32",Jul-21
S000204     ,57,Erewash Museum                ,Alarms Reactive Maintenance   ,07-Jun-2021,TECSERV UK                              ,324.41,Jul-21
S000260     ,319,Household Waste Collection    ,Repairs and Maintenance       ,15-Jun-2021,TERBERG MATEC UK                        ,751.55,Jul-21
S000260     ,763,Household Waste Collection    ,Repairs and Maintenance       ,23-Jun-2021,TERBERG MATEC UK                        ,321.22,Jul-21
S000260     ,748,Kerbside Recycling Collection ,Repairs and Maintenance       ,24-Jun-2021,TERBERG MATEC UK                        ,810.76,Jul-21
S000260     ,1216,Household Waste Collection    ,Repairs and Maintenance       ,02-Jul-2021,TERBERG MATEC UK                        ,573.74,Jul-21
S000260     ,1216,Household Waste Collection    ,Repairs and Maintenance       ,02-Jul-2021,TERBERG MATEC UK                        ,289.59,Jul-21
S000647     ,3696,Green Space                   ,Fuel                          ,31-Jul-2021,THE RIGHT FUELCARD COMPANY LTD          ,"2,237.00",Jul-21
S000290     ,55,Household Waste Collection    ,Agency Staff                  ,07-Jun-2021,THORN BAKER LIMITED                     ,"1,711.37",Jul-21
S000290     ,55,Kerbside Recycling Collection ,Agency Staff                  ,07-Jun-2021,THORN BAKER LIMITED                     ,"1,140.91",Jul-21
S000290     ,755,Household Waste Collection    ,Agency Staff                  ,02-Jun-2021,THORN BAKER LIMITED                     ,"2,073.27",Jul-21
S000290     ,755,Kerbside Recycling Collection ,Agency Staff                  ,02-Jun-2021,THORN BAKER LIMITED                     ,"1,382.18",Jul-21
S000290     ,250,Household Waste Collection    ,Agency Staff                  ,11-Jun-2021,THORN BAKER LIMITED                     ,"2,491.51",Jul-21
S000290     ,250,Kerbside Recycling Collection ,Agency Staff                  ,11-Jun-2021,THORN BAKER LIMITED                     ,"1,661.00",Jul-21
S000290     ,703,Household Waste Collection    ,Agency Staff                  ,23-Jun-2021,THORN BAKER LIMITED                     ,"1,305.75",Jul-21
S000290     ,703,Kerbside Recycling Collection ,Agency Staff                  ,23-Jun-2021,THORN BAKER LIMITED                     ,870.50,Jul-21
S000290     ,891,Household Waste Collection    ,Agency Staff                  ,30-Jun-2021,THORN BAKER LIMITED                     ,"1,607.05",Jul-21
S000290     ,891,Kerbside Recycling Collection ,Agency Staff                  ,30-Jun-2021,THORN BAKER LIMITED                     ,"1,071.36",Jul-21
S000290     ,426,Household Waste Collection    ,Agency Staff                  ,16-Jun-2021,THORN BAKER LIMITED                     ,"1,916.28",Jul-21
S000290     ,426,Kerbside Recycling Collection ,Agency Staff                  ,16-Jun-2021,THORN BAKER LIMITED                     ,"1,277.52",Jul-21
S000391     ,392,Property and Estates          ,Planned Preventative Maintenan,17-Jun-2021,TIME ASSURED LIMITED                    ,430.00,Jul-21
S000385     ,504,Merlin Way Depot              ,Electricity                   ,17-Jun-2021,TOTAL GAS & POWER LTD                   ,"1,690.02",Jul-21
S000385     ,504,Civic Accommodation Long Eaton,Electricity                   ,17-Jun-2021,TOTAL GAS & POWER LTD                   ,"1,496.04",Jul-21
S000385     ,504,Civic Accommodation Ilkeston  ,Electricity                   ,17-Jun-2021,TOTAL GAS & POWER LTD                   ,"1,147.06",Jul-21
S000385     ,504,Sandiacre Friesland Sports Ctr,Electricity                   ,17-Jun-2021,TOTAL GAS & POWER LTD                   ,393.19,Jul-21
S000385     ,504,Green Space                   ,Electricity                   ,17-Jun-2021,TOTAL GAS & POWER LTD                   ,814.34,Jul-21
S000385     ,2106,Civic Accommodation Long Eaton,Gas                           ,15-Jun-2021,TOTAL GAS & POWER LTD                   ,625.15,Jul-21
S000385     ,2106,Civic Accommodation Ilkeston  ,Gas                           ,15-Jun-2021,TOTAL GAS & POWER LTD                   ,750.91,Jul-21
S000385     ,2106,Green Space                   ,Gas                           ,15-Jun-2021,TOTAL GAS & POWER LTD                   ,343.95,Jul-21
S000385     ,2107,Civic Accommodation Ilkeston  ,Electricity                   ,17-Jun-2021,TOTAL GAS & POWER LTD                   ,289.78,Jul-21
S000385     ,2107,Toll Bar House                ,Electricity                   ,17-Jun-2021,TOTAL GAS & POWER LTD                   ,522.12,Jul-21
S000385     ,2107,Green Space                   ,Electricity                   ,17-Jun-2021,TOTAL GAS & POWER LTD                   ,"1,465.24",Jul-21
S000385     ,2107,CCTV - Ilkeston and Long Eaton,Electricity                   ,17-Jun-2021,TOTAL GAS & POWER LTD                   ,303.56,Jul-21
S000385     ,2107,Ilkeston Market               ,Electricity                   ,17-Jun-2021,TOTAL GAS & POWER LTD                   ,289.39,Jul-21
S000385     ,2107,Car Parking                   ,Electricity                   ,17-Jun-2021,TOTAL GAS & POWER LTD                   ,621.92,Jul-21
S000385     ,2107,Green Space                   ,Electricity                   ,17-Jun-2021,TOTAL GAS & POWER LTD                   ,417.39,Jul-21
S000385     ,2107,Public Conveniences           ,Electricity                   ,17-Jun-2021,TOTAL GAS & POWER LTD                   ,418.54,Jul-21
S000358     ,1315,Household Waste Collection    ,Agency Staff                  ,09-Jul-2021,TOTAL TRANSPORT COMPLIANCE              ,"1,500.00",Jul-21
S000358     ,735,Household Waste Collection    ,Agency Staff                  ,25-Jun-2021,TOTAL TRANSPORT COMPLIANCE              ,"3,000.00",Jul-21
S000591     ,2175,Homelessness                  ,Homelessness-Lease Properties ,30-Jun-2021,TRADE CARPETS                           ,658.33,Jul-21
S000542     ,890,Revenues and Benefits         ,Software Licences             ,22-Jun-2021,TRANSUNION INTERNATIONAL UK LTD         ,"3,379.99",Jul-21
S000462     ,724,Trade Waste                   ,Bins                          ,21-May-2021,UK CONTAINER MAINTENANCE LTD            ,"5,130.00",Jul-21
S000267     ,2140,EBC Balance Sheet             ,Payroll Coll Acc - Trade Union,20-Jul-2021,UNISON                                  ,422.40,Jul-21
S000314     ,610,Erewash Museum                ,Planned Preventative Maintenan,04-Jun-2021,V G STOKES & SONS.                      ,956.00,Jul-21
S000314     ,302,Parks Changing Rooms          ,Planned Preventative Maintenan,14-Jun-2021,V G STOKES & SONS.                      ,"1,659.00",Jul-21
S000565     ,731,Communications                ,General Publicity and Promotio,25-May-2021,WALSTEAD PETERBOROUGH LTD               ,"4,288.55",Jul-21
S000026     ,910,Green Space                   ,Materials/Consumables         ,09-Jun-2021,WAYNE PEAPELL CONSULTANCY LTD           ,460.00,Jul-21
S000026     ,48,Green Space                   ,Contracted Services           ,01-May-2021,WAYNE PEAPELL CONSULTANCY LTD           ,360.00,Jul-21
S000026     ,47,Green Space                   ,Contracted Services           ,01-May-2021,WAYNE PEAPELL CONSULTANCY LTD           ,"1,495.33",Jul-21
S000271     ,343,Play Areas                    ,Materials/Consumables         ,15-Jun-2021,WICKSTEED LEISURE LTD                   ,"1,062.00",Jul-21
S000543     ,544,Council Tax Collection        ,Fees Costs and Expenses       ,11-Jun-2021,WILKIN CHAPMAN LLP                      ,308.00,Jul-21
S000543     ,328,,,08-Jun-2021,WILKIN CHAPMAN LLP                      ,765.06,Jul-21
S000611     ,2120,Statement of Accounts         ,Valuation Fees                ,12-Jul-2021,WILKS HEAD & EVE LTD                    ,"7,800.00",Jul-21
S000326     ,621,Household Waste Collection    ,Agency Staff                  ,19-Jun-2021,WORKCHAIN LTD                           ,"1,594.49",Jul-21
S000326     ,621,Kerbside Recycling Collection ,Agency Staff                  ,19-Jun-2021,WORKCHAIN LTD                           ,"1,063.00",Jul-21
S000326     ,384,Household Waste Collection    ,Agency Staff                  ,12-Jun-2021,WORKCHAIN LTD                           ,"1,734.26",Jul-21
S000326     ,384,Kerbside Recycling Collection ,Agency Staff                  ,12-Jun-2021,WORKCHAIN LTD                           ,"1,156.18",Jul-21
S000326     ,840,Household Waste Collection    ,Agency Staff                  ,26-Jun-2021,WORKCHAIN LTD                           ,"1,734.26",Jul-21
S000326     ,840,Kerbside Recycling Collection ,Agency Staff                  ,26-Jun-2021,WORKCHAIN LTD                           ,"1,156.18",Jul-21
S000326     ,2368,Household Waste Collection    ,Agency Staff                  ,29-May-2021,WORKCHAIN LTD                           ,"1,615.27",Jul-21
S000326     ,2368,Kerbside Recycling Collection ,Agency Staff                  ,29-May-2021,WORKCHAIN LTD                           ,"1,076.85",Jul-21
S000326     ,1178,Household Waste Collection    ,Agency Staff                  ,03-Jul-2021,WORKCHAIN LTD                           ,"1,669.04",Jul-21
S000326     ,1178,Kerbside Recycling Collection ,Agency Staff                  ,03-Jul-2021,WORKCHAIN LTD                           ,"1,112.69",Jul-21
S000410     ,97,Reprographics                 ,Stationery                    ,01-Jun-2021,MORGANA SYSTEMS LTD                     ,400.50,Jul-21
S000410     ,97,Reprographics                 ,Stationery                    ,01-Jun-2021,MORGANA SYSTEMS LTD                     ,400.50,Jul-21
S000129     ,758,Street Scene                  ,Repairs and Maintenance       ,09-Jun-2021,MOTUS COMMERCIALS                       ,413.46,Jul-21
S000583     ,2354,General Entertainment         ,Special Events                ,27-Jul-2021,REDACTED PERSONAL DATA,700.00,Jul-21
S000593     ,876,Car Parking                   ,General Equipment             ,27-Apr-2021,NAGELS UK LTD                           ,451.00,Jul-21
S000049     ,287,Street Scene                  ,Street Furniture              ,10-Jun-2021,NIBRA SIGNS LTD                         ,"5,864.31",Jul-21
S000412     ,855,Chief Executives Office       ,Subscription - East Mids RLGA ,24-Jun-2021,NOTTINGHAM CITY COUNCIL                 ,"5,375.00",Jul-21
S000089     ,743,Homelessness                  ,Temporary Accommodation       ,07-Jun-2021,NOVOTEL NOTTINGHAM                      ,257.16,Jul-21
S000089     ,2176,Homelessness                  ,Temporary Accommodation       ,01-Jun-2021,NOVOTEL NOTTINGHAM                      ,"1,328.66",Jul-21
S000089     ,2361,Homelessness                  ,Temporary Accommodation       ,29-Jun-2021,NOVOTEL NOTTINGHAM                      ,"1,161.98",Jul-21
S000089     ,2362,Homelessness                  ,Temporary Accommodation       ,01-Jul-2021,NOVOTEL NOTTINGHAM                      ,"1,285.80",Jul-21
S000394     ,689,Urban Renewal                 ,Agency Staff                  ,26-May-2021,OSBORNE RICHARDSON                      ,"1,241.00",Jul-21
S000394     ,870,Urban Renewal                 ,Agency Staff                  ,21-Apr-2021,OSBORNE RICHARDSON                      ,748.00,Jul-21
S000394     ,873,Urban Renewal                 ,Agency Staff                  ,12-May-2021,OSBORNE RICHARDSON                      ,"1,028.50",Jul-21
S000394     ,874,Urban Renewal                 ,Agency Staff                  ,19-May-2021,OSBORNE RICHARDSON                      ,"1,181.50",Jul-21
S000394     ,871,Urban Renewal                 ,Agency Staff                  ,28-Apr-2021,OSBORNE RICHARDSON                      ,"1,258.00",Jul-21
S000394     ,872,Urban Renewal                 ,Agency Staff                  ,05-May-2021,OSBORNE RICHARDSON                      ,"1,258.00",Jul-21
S000415     ,738,Environmental Protection Act  ,Work In Default               ,04-Jun-2021,P G BOSWORTH LIMITED                    ,"1,475.00",Jul-21
S000484     ,235,Car Parking                   ,Reactive Maintenance          ,02-Jun-2021,PARKIN CONTRACTORS LTD                  ,530.00,Jul-21
S000327     ,719,Leisure Services              ,Contracted Services           ,21-Jun-2021,PARKWOOD LEISURE LTD                    ,"26,831.98",Jul-21
S000327     ,723,Leisure Services              ,Project Grants                ,10-Jun-2021,PARKWOOD LEISURE LTD                    ,"50,378.00",Jul-21
S000327     ,2145,EBC Balance Sheet             ,EBC Fit for Work Scheme       ,20-Jul-2021,PARKWOOD LEISURE LTD                    ,553.50,Jul-21
S000327     ,2280,Leisure Services              ,Contracted Services           ,20-Jul-2021,PARKWOOD LEISURE LTD                    ,"26,831.98",Jul-21
S000224     ,912,Street Scene                  ,Repairs and Maintenance       ,04-Jun-2021,PARTIC MOTOR SPARES LTD                 ,350.00,Jul-21
S000408     ,687,Development Control           ,Planning Fees                 ,24-Jun-2021,BANG THE ELEPHANT BREWING CO            ,462.00,Jul-21
S000408     ,231,General Entertainment         ,Lettings                      ,10-Jun-2021,PINDERS CIRCUS (MIKE LEA ENTERT LTD)    ,500.00,Jul-21
S000408     ,883,General Entertainment         ,Lettings                      ,02-Jul-2021,REDACTED PERSONAL DATA,500.00,Jul-21
S000408     ,2190,Personnel                     ,Long Service Award            ,21-Jul-2021,REDACTED PERSONAL DATA,500.00,Jul-21
S000408     ,2289,Building Control - Fee Earning,Building Control Fees         ,23-Jul-2021,REDACTED PERSONAL DATA,350.00,Jul-21
S000408     ,2290,Building Control - Fee Earning,Building Control Fees         ,23-Jul-2021,REDACTED PERSONAL DATA,666.67,Jul-21
S000408     ,2363,General Entertainment         ,Lettings                      ,28-Jul-2021,REDACTED PERSONAL DATA,500.00,Jul-21
S000159     ,266,Civic Accommodation Long Eaton,Repairs and Maintenance       ,11-Jun-2021,PEEL ELECTRICAL LTD                     ,294.84,Jul-21
S000159     ,267,Civic Accommodation Long Eaton,Repairs and Maintenance       ,11-Jun-2021,PEEL ELECTRICAL LTD                     ,"1,951.00",Jul-21
S000159     ,528,West Park Pavilion and caf�   ,Repairs and Maintenance       ,22-Jun-2021,PEEL ELECTRICAL LTD                     ,294.76,Jul-21
S000159     ,895,Civic Accommodation Long Eaton,PPM Mechanical and Equipment  ,01-Jul-2021,PEEL ELECTRICAL LTD                     ,320.40,Jul-21
S000159     ,894,Civic Accommodation Long Eaton,PPM Mechanical and Equipment  ,01-Jul-2021,PEEL ELECTRICAL LTD                     ,344.96,Jul-21
S000159     ,893,West Park Pavilion and caf�   ,PPM Mechanical and Equipment  ,01-Jul-2021,PEEL ELECTRICAL LTD                     ,515.78,Jul-21
S000230     ,745,,,29-Jun-2021,PENHAM EXCEL LIMITED                    ,612.08,Jul-21
S000230     ,1505,,,12-Jul-2021,PENHAM EXCEL LIMITED                    ,"1,003.82",Jul-21
S000156     ,713,Homelessness                  ,Contracted Services           ,27-May-2021,PEOPLE POTENTIAL POSSIBILITIES          ,"13,829.50",Jul-21
S000156     ,713,Homelessness                  ,Contracted Services           ,27-May-2021,PEOPLE POTENTIAL POSSIBILITIES          ,"13,214.33",Jul-21
S000156     ,711,Homelessness                  ,Contracted Services           ,01-Apr-2021,PEOPLE POTENTIAL POSSIBILITIES          ,"13,829.50",Jul-21
S000156     ,711,Homelessness                  ,Contracted Services           ,01-Apr-2021,PEOPLE POTENTIAL POSSIBILITIES          ,"13,214.33",Jul-21
S000156     ,712,Homelessness                  ,Contracted Services           ,29-Apr-2021,PEOPLE POTENTIAL POSSIBILITIES          ,"13,829.50",Jul-21
S000156     ,712,Homelessness                  ,Contracted Services           ,29-Apr-2021,PEOPLE POTENTIAL POSSIBILITIES          ,"13,214.33",Jul-21
S000233     ,247,ICT Support Services          ,Security                      ,11-Jun-2021,PHOENIX SOFTWARE LTD                    ,277.35,Jul-21
S000233     ,248,Reprographics                 ,Stationery                    ,11-Jun-2021,PHOENIX SOFTWARE LTD                    ,"1,315.20",Jul-21
S000579     ,1056,Procurement Services          ,Software Licences             ,28-Jun-2021,PROACTIS                                ,"1,978.00",Jul-21
S000380     ,866,Green Space                   ,Materials/Consumables         ,30-Jun-2021,PROTECTIVE WEAR SUPPLIES LTD            ,655.10,Jul-21
S000312     ,690,Economic Development          ,Contracted Services           ,01-Jun-2021,PROXIMITY FUTURES T/A ELEPHANT WIFI     ,303.33,Jul-21
S000235     ,2144,EBC Balance Sheet             ,Payroll Coll Acc - AVCS       ,20-Jul-2021,PRUDENTIAL                              ,"2,755.66",Jul-21
S000284     ,1195,Public Conveniences           ,Materials/Consumables         ,11-May-2021,BANNER GROUP LIMITED                    ,275.40,Jul-21
S000284     ,310,Merlin Way Depot              ,Cleaning Materials            ,09-Jun-2021,BANNER GROUP LIMITED                    ,319.20,Jul-21
S000284     ,1191,Public Conveniences           ,Materials/Consumables         ,29-Jun-2021,BANNER GROUP LIMITED                    ,366.95,Jul-21
S000540     ,627,ICT Support Services          ,Telephones                    ,22-Jun-2021,BRITISH TELECOMMUNICATIONS PLC          ,"1,646.66",Jul-21
S000136     ,899,Street Scene                  ,Bins                          ,25-May-2021,BROXAP LIMITED                          ,"4,080.00",Jul-21
S000136     ,29,Green Space                   ,Materials/Consumables         ,27-May-2021,BROXAP LIMITED                          ,420.00,Jul-21
S000407     ,686,Occupational Health & Welfare ,Occupational Health Service   ,01-Jun-2021,BUPA HEALTH CLINICS                     ,418.55,Jul-21
S000045     ,3712,Treasury and Bank Charges     ,Credit/Debit Card Charges     ,26-Jul-2021,CAPITA                                  ,"2,892.13",Jul-21
S000232     ,646,ICT Support Services          ,General Equipment             ,17-Jun-2021,CCS MEDIA LIMITED                       ,"3,593.58",Jul-21
S000232     ,918,ICT Support Services          ,Maintenance of Equipment      ,30-Jun-2021,CCS MEDIA LIMITED                       ,339.42,Jul-21
S000161     ,832,EBC Balance Sheet             ,Fuel Store                    ,24-Jun-2021,CERTAS ENERGY UK LIMITED T/A CARLTON FUE,"30,564.00",Jul-21
S000051     ,684,Personnel                     ,Recruitment Expenses          ,20-Nov-2020,CIEH                                    ,800.00,Jul-21
S000051     ,685,Personnel                     ,Recruitment Expenses          ,27-May-2021,CIEH                                    ,800.00,Jul-21
S000085     ,626,Revenues and Benefits         ,Software Licences             ,24-Jun-2021,CIVICA UK LIMITED                       ,"1,790.00",Jul-21
S000085     ,625,Housing Benefit Administration,Project Grants                ,24-Jun-2021,CIVICA UK LIMITED                       ,"4,275.69",Jul-21
S000354     ,2083,ICT Support Services          ,Mobile Phones                 ,01-Jul-2021,CLASS AFFINITY PROJECTS LTD             ,"2,051.41",Jul-21
S000581     ,772,Development Control           ,Consultants Fees              ,28-May-2021,CUSHMAN & WAKEFIELD DEBENHAM TIE LEUNG  ,"2,475.00",Jul-21
S000122     ,448,Street Scene                  ,Agency Staff                  ,07-Jun-2021,EXTRA PERSONNEL LTD                     ,479.61,Jul-21
S000122     ,511,Public Conveniences           ,Agency Staff                  ,07-Jun-2021,EXTRA PERSONNEL LTD                     ,499.87,Jul-21
S000122     ,511,Green Space                   ,Agency Staff                  ,07-Jun-2021,EXTRA PERSONNEL LTD                     ,"1,990.79",Jul-21
S000122     ,511,Street Scene                  ,Agency Staff                  ,07-Jun-2021,EXTRA PERSONNEL LTD                     ,"1,990.78",Jul-21
S000122     ,449,Green Space                   ,Agency Staff                  ,07-Jun-2021,EXTRA PERSONNEL LTD                     ,"3,118.72",Jul-21
S000122     ,449,Street Scene                  ,Agency Staff                  ,07-Jun-2021,EXTRA PERSONNEL LTD                     ,"3,118.72",Jul-21
S000122     ,885,Street Scene                  ,Agency Staff                  ,21-Jun-2021,EXTRA PERSONNEL LTD                     ,315.63,Jul-21
S000122     ,887,Green Space                   ,Agency Staff                  ,21-Jun-2021,EXTRA PERSONNEL LTD                     ,"2,592.90",Jul-21
S000122     ,887,Street Scene                  ,Agency Staff                  ,21-Jun-2021,EXTRA PERSONNEL LTD                     ,"2,592.89",Jul-21
S000122     ,63,Street Scene                  ,Agency Staff                  ,07-Jun-2021,EXTRA PERSONNEL LTD                     ,315.63,Jul-21
S000122     ,699,Street Scene                  ,Agency Staff                  ,14-Jun-2021,EXTRA PERSONNEL LTD                     ,315.63,Jul-21
S000122     ,700,Street Scene                  ,Agency Staff                  ,14-Jun-2021,EXTRA PERSONNEL LTD                     ,350.70,Jul-21
S000122     ,25,Green Space                   ,Agency Staff                  ,17-May-2021,EXTRA PERSONNEL LTD                     ,"2,265.80",Jul-21
S000122     ,25,Street Scene                  ,Agency Staff                  ,17-May-2021,EXTRA PERSONNEL LTD                     ,"2,265.80",Jul-21
S000122     ,59,Green Space                   ,Agency Staff                  ,07-Jun-2021,EXTRA PERSONNEL LTD                     ,"2,461.17",Jul-21
S000122     ,59,Street Scene                  ,Agency Staff                  ,07-Jun-2021,EXTRA PERSONNEL LTD                     ,"2,461.17",Jul-21
S000122     ,61,Green Space                   ,Agency Staff                  ,07-Jun-2021,EXTRA PERSONNEL LTD                     ,"2,542.62",Jul-21
S000122     ,61,Street Scene                  ,Agency Staff                  ,07-Jun-2021,EXTRA PERSONNEL LTD                     ,"2,542.61",Jul-21
S000122     ,697,Public Conveniences           ,Agency Staff                  ,14-Jun-2021,EXTRA PERSONNEL LTD                     ,540.40,Jul-21
S000122     ,697,Green Space                   ,Agency Staff                  ,14-Jun-2021,EXTRA PERSONNEL LTD                     ,"2,527.84",Jul-21
S000122     ,697,Street Scene                  ,Agency Staff                  ,14-Jun-2021,EXTRA PERSONNEL LTD                     ,"2,527.84",Jul-21
S000122     ,696,Green Space                   ,Agency Staff                  ,14-Jun-2021,EXTRA PERSONNEL LTD                     ,"2,941.76",Jul-21
S000122     ,696,Street Scene                  ,Agency Staff                  ,14-Jun-2021,EXTRA PERSONNEL LTD                     ,"2,941.75",Jul-21
S000122     ,1352,Street Scene                  ,Agency Staff                  ,28-Jun-2021,EXTRA PERSONNEL LTD                     ,350.70,Jul-21
S000122     ,1358,Green Space                   ,Agency Staff                  ,28-Jun-2021,EXTRA PERSONNEL LTD                     ,"2,312.55",Jul-21
S000122     ,1358,Street Scene                  ,Agency Staff                  ,28-Jun-2021,EXTRA PERSONNEL LTD                     ,"2,312.54",Jul-21
S000122     ,1358,Public Conveniences           ,Agency Staff                  ,28-Jun-2021,EXTRA PERSONNEL LTD                     ,587.69,Jul-21
S000122     ,1354,Green Space                   ,Agency Staff                  ,28-Jun-2021,EXTRA PERSONNEL LTD                     ,"2,916.12",Jul-21
S000122     ,1354,Street Scene                  ,Agency Staff                  ,28-Jun-2021,EXTRA PERSONNEL LTD                     ,"2,916.12",Jul-21
S000122     ,889,Household Waste Collection    ,Agency Staff                  ,21-Jun-2021,EXTRA PERSONNEL LTD                     ,224.63,Jul-21
S000122     ,889,Kerbside Recycling Collection ,Agency Staff                  ,21-Jun-2021,EXTRA PERSONNEL LTD                     ,207.90,Jul-21
S000122     ,1357,Household Waste Collection    ,Agency Staff                  ,28-Jun-2021,EXTRA PERSONNEL LTD                     ,"2,955.77",Jul-21
S000122     ,1357,Kerbside Recycling Collection ,Agency Staff                  ,28-Jun-2021,EXTRA PERSONNEL LTD                     ,"1,970.52",Jul-21
S000122     ,698,Household Waste Collection    ,Agency Staff                  ,25-Jun-2021,EXTRA PERSONNEL LTD                     ,"3,312.71",Jul-21
S000122     ,698,Kerbside Recycling Collection ,Agency Staff                  ,25-Jun-2021,EXTRA PERSONNEL LTD                     ,"2,208.47",Jul-21
S000122     ,60,Household Waste Collection    ,Agency Staff                  ,07-Jun-2021,EXTRA PERSONNEL LTD                     ,"3,469.17",Jul-21
S000122     ,60,Kerbside Recycling Collection ,Agency Staff                  ,07-Jun-2021,EXTRA PERSONNEL LTD                     ,"2,312.78",Jul-21
S000122     ,26,Household Waste Collection    ,Agency Staff                  ,17-May-2021,EXTRA PERSONNEL LTD                     ,"3,495.62",Jul-21
S000122     ,26,Kerbside Recycling Collection ,Agency Staff                  ,17-May-2021,EXTRA PERSONNEL LTD                     ,"2,330.42",Jul-21
S000122     ,447,Household Waste Collection    ,Agency Staff                  ,07-Jun-2021,EXTRA PERSONNEL LTD                     ,"3,696.20",Jul-21
S000122     ,447,Kerbside Recycling Collection ,Agency Staff                  ,07-Jun-2021,EXTRA PERSONNEL LTD                     ,"2,464.14",Jul-21
S000122     ,270,Household Waste Collection    ,Agency Staff                  ,11-Jun-2021,EXTRA PERSONNEL LTD                     ,"4,098.28",Jul-21
S000122     ,270,Kerbside Recycling Collection ,Agency Staff                  ,11-Jun-2021,EXTRA PERSONNEL LTD                     ,"2,732.18",Jul-21
S000413     ,882,Revenues and Benefits         ,Postages                      ,02-Jul-2021,FRAMA UK LIMITED                        ,"5,000.00",Jul-21
S000265     ,742,Kerbside Recycling Collection ,Waste Disposal                ,31-May-2021,GAE SMITH HOLDINGS T/A CASEPAK          ,"34,689.43",Jul-21
S000265     ,1370,Kerbside Recycling Collection ,Waste Disposal                ,30-Jun-2021,GAE SMITH HOLDINGS T/A CASEPAK          ,"34,828.47",Jul-21
S000346     ,427,Civic Accommodation Ilkeston  ,Repairs and Maintenance       ,16-Jun-2021,GDUK DOOR SOLUTIONS LIMITED             ,473.00,Jul-21
S000133     ,169,Green Space                   ,Contracted Services           ,06-Jun-2021,GO TRAFFIC MANAGEMENT                   ,795.00,Jul-21
S000133     ,631,Green Space                   ,Contracted Services           ,20-Jun-2021,GO TRAFFIC MANAGEMENT                   ,795.00,Jul-21
S000133     ,1180,Green Space                   ,Materials/Consumables         ,04-Jul-2021,GO TRAFFIC MANAGEMENT                   ,895.00,Jul-21
S000096     ,903,Allotments                    ,Contracted Services           ,01-Jul-2021,REDACTED PERSONAL DATA,740.00,Jul-21
S000142     ,771,Green Space                   ,General Equipment             ,29-Jun-2021,GROUNDSMAN TOOLS AND SUPPLIES LLP       ,583.83,Jul-21
S000106     ,87,Green Space                   ,Repairs and Maintenance       ,03-Jun-2021,HENTON & CHATTELL LTD                   ,300.65,Jul-21
S000106     ,540,Green Space                   ,Materials/Consumables         ,16-Jun-2021,HENTON & CHATTELL LTD                   ,490.48,Jul-21
S000106     ,1196,Green Space                   ,General Equipment             ,31-May-2021,HENTON & CHATTELL LTD                   ,890.00,Jul-21
S000012     ,2318,EBC Balance Sheet             ,Payroll Coll Acc - Income Tax ,21-Jul-2021,HMRC CUMBERNAULD                        ,434.80,Jul-21
S000012     ,2318,EBC Balance Sheet             ,Payroll Coll Acc National Ins ,21-Jul-2021,HMRC CUMBERNAULD                        ,532.92,Jul-21
S000012     ,2315,EBC Balance Sheet             ,Payroll Coll Acc - Income Tax ,21-Jul-2021,HMRC CUMBERNAULD                        ,"71,813.79",Jul-21
S000012     ,2315,EBC Balance Sheet             ,Payroll Coll Acc Student Loan ,21-Jul-2021,HMRC CUMBERNAULD                        ,"1,240.00",Jul-21
S000012     ,2315,EBC Balance Sheet             ,Payroll Coll Acc National Ins ,21-Jul-2021,HMRC CUMBERNAULD                        ,"104,402.03",Jul-21
S000012     ,2315,EBC Balance Sheet             ,Apprenticeship Levy           ,21-Jul-2021,HMRC CUMBERNAULD                        ,"2,112.00",Jul-21
S000012     ,2315,EBC Balance Sheet             ,Apprenticeship Levy           ,21-Jul-2021,HMRC CUMBERNAULD                        ,"1,250.00",Jul-21
S000572     ,425,Play Areas                    ,Materials/Consumables         ,03-Jun-2021,HUCK NETS (UK) LTD                      ,723.58,Jul-21
S000283     ,3718,Treasury and Bank Charges     ,Allpay/Post Office Charges    ,31-Jul-2021,ALLPAY LIMITED                          ,"1,070.99",Jul-21
S000041     ,414,Civic Duties Hospitality      ,Civic Regalia and Robes       ,14-Jun-2021,ALPHA PARTNER (MIDLANDS)  LIMITED       ,280.00,Jul-21
S000041     ,304,Civic Accommodation Ilkeston  ,Reactive Maintenance          ,14-Jun-2021,ALPHA PARTNER (MIDLANDS)  LIMITED       ,580.00,Jul-21
S000041     ,382,Public Conveniences           ,Reactive Maintenance          ,14-Jun-2021,ALPHA PARTNER (MIDLANDS)  LIMITED       ,582.00,Jul-21
S000041     ,525,St Laurence Pre School        ,Reactive Maintenance          ,14-Jun-2021,ALPHA PARTNER (MIDLANDS)  LIMITED       ,590.00,Jul-21
S000041     ,527,Flamsteed Centre - Ilkeston   ,Planned Preventative Maint    ,14-Jun-2021,ALPHA PARTNER (MIDLANDS)  LIMITED       ,550.00,Jul-21
S000041     ,527,Council Blgs Asbestos Removal ,Reactive Maintenance          ,14-Jun-2021,ALPHA PARTNER (MIDLANDS)  LIMITED       ,640.00,Jul-21
S000041     ,303,Merlin Way Depot              ,Reactive Maintenance          ,14-Jun-2021,ALPHA PARTNER (MIDLANDS)  LIMITED       ,"1,844.80",Jul-21
S000041     ,526,Parks Pavilions               ,Reactive Maintenance          ,02-Jun-2021,ALPHA PARTNER (MIDLANDS)  LIMITED       ,472.00,Jul-21
S000041     ,2080,Civic Accommodation Ilkeston  ,Reactive Maintenance          ,14-Jun-2021,ALPHA PARTNER (MIDLANDS)  LIMITED       ,920.00,Jul-21
S000041     ,846,Civic Accommodation Long Eaton,Repairs and Maintenance       ,30-Jun-2021,ALPHA PARTNER (MIDLANDS)  LIMITED       ,940.00,Jul-21
S000488     ,4326,Insurances (Corporate Matters),Insurance                     ,30-Jul-2021,ALPHATEC SOFTWARE LIMITED               ,"3,603.90",Jul-21
S000017     ,848,ICT Support Services          ,Office Paper                  ,30-Jun-2021,ANTALIS DOCUMENT SUPPLIES               ,273.00,Jul-21
S000325     ,2126,Street Scene                  ,Materials/Consumables         ,23-Jun-2021,AQUA CLEAN                              ,707.50,Jul-21
S000024     ,865,Trade Waste                   ,Repairs and Maintenance       ,30-Jun-2021,AWSWORTH MOTOR CO LTD                   ,477.50,Jul-21
S000559     ,2278,Street Scene                  ,Contracted Services           ,04-May-2021,LANGUARD LTD                            ,"3,572.79",Jul-21
S000559     ,860,Street Scene                  ,Contracted Services           ,01-Jul-2021,LANGUARD LTD                            ,"3,572.79",Jul-21
S000569     ,1323,Civic Duties Hospitality      ,Civic Events                  ,05-Jul-2021,LINK SUPPORT SERVICES (UK) LTD          ,875.00,Jul-21
S000625     ,3720,Treasury and Bank Charges     ,Bank Charges                  ,12-Jul-2021,LLOYDS BANK PLC                         ,523.68,Jul-21
S000172     ,2366,Homelessness                  ,Computer Software             ,30-Jun-2021,LOCATA (HOUSING SERVICES) LTD           ,"3,750.00",Jul-21
S000086     ,878,Household Waste Collection    ,Tyres                         ,30-Jun-2021,LODGE TYRE COMPANY LTD                  ,"1,408.35",Jul-21
S000086     ,878,Trade Waste                   ,Tyres                         ,30-Jun-2021,LODGE TYRE COMPANY LTD                  ,35.00,Jul-21
S000086     ,878,Kerbside Recycling Collection ,Tyres                         ,30-Jun-2021,LODGE TYRE COMPANY LTD                  ,285.00,Jul-21
S000086     ,878,Street Scene                  ,Tyres                         ,30-Jun-2021,LODGE TYRE COMPANY LTD                  ,"1,330.16",Jul-21
S000086     ,878,Green Space                   ,Tyres                         ,30-Jun-2021,LODGE TYRE COMPANY LTD                  ,145.79,Jul-21
S000086     ,878,Neighbourhood Wardens         ,Tyres                         ,30-Jun-2021,LODGE TYRE COMPANY LTD                  ,48.00,Jul-21
S000196     ,510,Finance                       ,Software and Implementation   ,20-Jun-2021,MACILDOWIE RECRUITMENT EXPERTISE        ,"1,263.18",Jul-21
S000196     ,734,Finance                       ,Software and Implementation   ,27-Jun-2021,MACILDOWIE RECRUITMENT EXPERTISE        ,"1,263.18",Jul-21
S000196     ,509,Finance                       ,Software and Implementation   ,22-Jun-2021,MACILDOWIE RECRUITMENT EXPERTISE        ,"1,263.18",Jul-21
S000213     ,737,Household Waste Collection    ,Personal Protective Equipment ,28-Jun-2021,MAIN MAN SUPPLIES LTD                   ,516.00,Jul-21
S000213     ,737,Kerbside Recycling Collection ,Personal Protective Equipment ,28-Jun-2021,MAIN MAN SUPPLIES LTD                   ,516.00,Jul-21
S000241     ,2069,,,07-Apr-2021,MARSTON HOLDINGS LIMITED                ,950.53,Jul-21
S000150     ,838,Green Space                   ,Vehicle Tracking Repairs and M,01-May-2021,MASTERNAUT (UK) LTD                     ,"1,524.90",Jul-21
S000150     ,838,Street Scene                  ,Vehicle Tracking Repairs and M,01-May-2021,MASTERNAUT (UK) LTD                     ,"1,524.90",Jul-21
S000226     ,701,West Park Nursery             ,PPM Mechanical and Equipment  ,25-Jun-2021,MDB PLUMBING (NOTTM) LTD                ,299.24,Jul-21
S000226     ,701,West Park Nursery             ,PPM Mechanical and Equipment  ,25-Jun-2021,MDB PLUMBING (NOTTM) LTD                ,270.59,Jul-21
S000226     ,508,Civic Accommodation Ilkeston  ,PPM Mechanical and Equipment  ,22-Jun-2021,MDB PLUMBING (NOTTM) LTD                ,"1,362.24",Jul-21
S000155     ,499,Kerbside Recycling Collection ,Bins                          ,04-Jun-2021,MGB PLASTICS LTD                        ,"7,584.00",Jul-21
S000155     ,521,Household Waste Collection    ,Bins                          ,04-Jun-2021,MGB PLASTICS LTD                        ,"7,584.00",Jul-21
S000155     ,501,Trade Waste                   ,Bins                          ,17-Jun-2021,MGB PLASTICS LTD                        ,280.00,Jul-21
S000155     ,501,Trade Waste                   ,Bins                          ,17-Jun-2021,MGB PLASTICS LTD                        ,610.00,Jul-21
S000155     ,501,Trade Waste                   ,Bins                          ,17-Jun-2021,MGB PLASTICS LTD                        ,860.00,Jul-21
S000706     ,4370,EBC Balance Sheet             ,NNDR Coll Fund Control Account,20-Jul-2021,MHCLG-DEPARTMENT FOR COMMUNITES & LOCAL ,"1,099,103.00",Jul-21
S000706     ,4412,EBC Balance Sheet             ,NNDR Coll Fund Control Account,20-Jul-2021,MHCLG-DEPARTMENT FOR COMMUNITES & LOCAL ,"1,099,103.00",Jul-21
